fUST/lending_fUST_20251006
["ID","MTS","AMOUNT","RATE_DAILY","PERIOD"]
[389526822,1759698643647,-500.0,0.00016986,2]
[389526823,1759698643660,-2546.87,0.00016986,2]
[389526824,1759698643669,-1155.32,0.00016986,2]
[389526825,1759698643678,-2232.94,0.00016986,2]
[389526826,1759698643687,-503.21,0.00016986,2]
[389526827,1759698643696,-675.13,0.00016986,2]
[389526828,1759698643706,-500.0,0.00016986,2]
[389526829,1759698643715,-619.73,0.00016986,2]
[389526830,1759698643723,-500.0,0.00016986,2]
[389526831,1759698643732,-500.0,0.00016986,2]
[389526832,1759698643742,-500.0,0.00016986,2]
[389526833,1759698643750,-1898.34,0.00016986,2]
[389526834,1759698643759,-500.0,0.00016986,2]
[389526835,1759698643769,-500.0,0.00016986,2]
[389526836,1759698643778,-500.0,0.00016986,2]
[389526837,1759698643787,-500.0,0.00016986,2]
[389526838,1759698643797,-616.67,0.00016986,2]
[389526839,1759698643806,-1044.26,0.00016986,2]
[389526840,1759698643815,-233.26011454,0.00016986,2]
[389526841,1759698643824,-500.0,0.00016986,2]
[389526842,1759698643834,-849.6,0.00016986,2]
[389526843,1759698643843,-500.0,0.00016986,2]
[389526844,1759698643853,-516.3,0.00016986,2]
[389526845,1759698643862,-589.5,0.00016986,2]
[389526846,1759698643871,-500.0,0.00016986,2]
[389526847,1759698643880,-1614.46,0.00016986,2]
[389526848,1759698643889,-506.14,0.00016986,2]
[389526849,1759698643898,-943.07,0.00016986,2]
[389526850,1759698643907,-807.48,0.00016986,2]
[389526851,1759698643916,-500.0,0.00016986,2]
[389526852,1759698643925,-2074.48,0.00016986,2]
[389526853,1759698643933,-500.0,0.00016986,2]
[389526854,1759698643942,-500.0,0.00016986,2]
[389526855,1759698643951,-500.0,0.00016986,2]
[389526856,1759698643960,-500.0,0.00016986,2]
[389526857,1759698643969,-500.0,0.00016986,2]
[389526858,1759698643977,-500.0,0.00016986,2]
[389526859,1759698643986,-573.89,0.00016986,2]
[389526860,1759698643995,-500.0,0.00016986,2]
[389526861,1759698644003,-557.62,0.00016986,2]
[389526862,1759698644013,-2487.78,0.00016986,2]
[389526863,1759698644021,-500.0,0.00016986,2]
[389526864,1759698644030,-500.0,0.00016986,2]
[389526865,1759698644039,-1062.27,0.00016986,2]
[389526866,1759698644048,-921.53,0.00016986,2]
[389526867,1759698644056,-4388.04,0.00016986,2]
[389526868,1759698644064,-1469.53,0.00016986,2]
[389526869,1759698644073,-500.0,0.00016986,2]
[389526870,1759698644082,-1137.41,0.00016986,2]
[389526871,1759698644091,-4246.51,0.00016986,2]
[389526872,1759698644099,-500.0,0.00016986,2]
[389526873,1759698644108,-500.0,0.00016986,2]
[389526874,1759698644117,-500.0,0.00016986,2]
[389526875,1759698644126,-1066.23,0.00016986,2]
[389526876,1759698644135,-3511.75,0.00016986,2]
[389526877,1759698644144,-658.24,0.00016986,2]
[389526878,1759698644152,-500.0,0.00016986,2]
[389526879,1759698644161,-500.0,0.00016986,2]
[389526880,1759698644169,-1456.88,0.00016986,2]
[389526881,1759698644178,-1205.93,0.00016986,2]
[389526882,1759698644187,-738.23,0.00016986,2]
[389526883,1759698644196,-500.0,0.00016986,2]
[389526884,1759698644204,-632.81,0.00016986,2]
[389526885,1759698644213,-500.0,0.00016986,2]
[389526886,1759698644222,-660.12,0.00016986,2]
[389526887,1759698644230,-151.0,0.00016986,2]
[389526888,1759698644239,-2236.38,0.00016986,2]
[389526889,1759698644248,-1996.38,0.00016986,2]
[389526890,1759698644257,-226.35557,0.00016986,2]
[389526891,1759698644265,-500.0,0.00016986,2]
[389526892,1759698644274,-2105.41764886,0.0001699,2]
[389526893,1759698644283,-151.0,0.0001699,2]
[389526894,1759698644291,-151.0,0.0001699,2]
[389526895,1759698644300,-151.0,0.0001699,2]
[389526896,1759698644310,-151.0,0.0001699,2]
[389526897,1759698644320,-151.0,0.0001699,2]
[389526898,1759698644329,-151.0,0.0001699,2]
[389526899,1759698644339,-151.0,0.0001699,2]
[389526900,1759698644348,-151.0,0.0001699,2]
[389526901,1759698644357,-151.0,0.0001699,2]
[389526902,1759698644366,-151.659466,0.0001699,2]
[389526903,1759698644374,-151.0,0.0001699,2]
[389526904,1759698644384,-151.0,0.0001699,2]
[389526905,1759698644393,-151.0,0.0001699,2]
[389526906,1759698644402,-151.0,0.0001699,2]
[389526907,1759698644411,-151.0,0.0001699,2]
[389526908,1759698644420,-257.527292,0.0001699,2]
[389526909,1759698644429,-160.376868,0.0001699,2]
[389526910,1759698644439,-151.0,0.0001699,2]
[389526911,1759698644448,-151.0,0.0001699,2]
[389526912,1759698644457,-151.0,0.0001699,2]
[389526913,1759698644466,-151.0,0.0001699,2]
[389526914,1759698644476,-291.947041,0.0001699,2]
[389526915,1759698644485,-151.0,0.0001699,2]
[389526916,1759698644494,-151.0,0.0001699,2]
[389526917,1759698644503,-151.0,0.0001699,2]
[389526918,1759698644513,-151.0,0.0001699,2]
[389526919,1759698644522,-151.0,0.0001699,2]
[389526920,1759698644531,-151.0,0.0001699,2]
[389526921,1759698644540,-151.0,0.0001699,2]
[389526922,1759698644550,-151.0,0.0001699,2]
[389526923,1759698644560,-151.0,0.0001699,2]
[389526924,1759698644569,-151.0,0.0001699,2]
[389526925,1759698644579,-269.523592,0.0001699,2]
[389526926,1759698644588,-151.0,0.0001699,2]
[389526927,1759698644598,-257.914299,0.0001699,2]
[389526928,1759698644607,-151.0,0.0001699,2]
[389526929,1759698644616,-180.638359,0.0001699,2]
[389526930,1759698644625,-151.0,0.0001699,2]
[389526931,1759698644634,-151.0,0.0001699,2]
[389526932,1759698644643,-151.0,0.0001699,2]
[389526933,1759698644653,-151.0,0.0001699,2]
[389526934,1759698644666,-151.0,0.0001699,2]
[389526935,1759698644676,-151.0,0.0001699,2]
[389526936,1759698644685,-151.0,0.0001699,2]
[389526937,1759698644694,-151.0,0.0001699,2]
[389526938,1759698644705,-151.0,0.0001699,2]
[389526939,1759698644714,-169.780732,0.0001699,2]
[389526940,1759698644724,-169.780732,0.0001699,2]
[389526941,1759698644734,-169.780732,0.0001699,2]
[389526942,1759698644743,-198.347958,0.0001699,2]
[389526943,1759698644752,-169.780732,0.0001699,2]
[389526944,1759698644761,-269.592529,0.0001699,2]
[389526945,1759698644771,-151.0,0.0001699,2]
[389526946,1759698644780,-151.0,0.0001699,2]
[389526947,1759698644789,-151.0,0.0001699,2]
[389526948,1759698644798,-151.0,0.0001699,2]
[389526949,1759698644808,-151.0,0.0001699,2]
[389526950,1759698644818,-151.0,0.0001699,2]
[389526951,1759698644828,-151.0,0.0001699,2]
[389526952,1759698644837,-186.73993794,0.0001699,2]
[389526953,1759698644846,-223.135702,0.0001699,2]
[389526954,1759698644856,-151.0,0.0001699,2]
[389526955,1759698644865,-151.0,0.0001699,2]
[389526956,1759698644875,-151.0,0.0001699,2]
[389526957,1759698644884,-151.0,0.0001699,2]
[389526958,1759698644893,-3467.768628,0.0001699,2]
[389526959,1759698644903,-151.0,0.0001699,2]
[389526960,1759698644912,-3467.768628,0.0001699,2]
[389526961,1759698644921,-3467.768628,0.0001699,2]
[389526962,1759698644931,-3467.768628,0.0001699,2]
[389526963,1759698644940,-151.0,0.0001699,2]
[389526964,1759698644949,-157.15423863,0.00017045,2]
[389526965,1759698644959,-374.79613424,0.0001705,2]
[389526966,1759698644968,-500.0,0.0001705,2]
[389526967,1759698644976,-500.0,0.0001705,2]
[389526968,1759698644985,-500.0,0.0001705,2]
[389526969,1759698644994,-500.0,0.0001705,2]
[389526970,1759698645003,-500.0,0.0001705,2]
[389526971,1759698645012,-500.0,0.0001705,2]
[389526972,1759698645022,-500.0,0.0001705,2]
[389526973,1759698645031,-500.0,0.0001705,2]
[389526974,1759698645040,-500.0,0.0001705,2]
[389526975,1759698645049,-500.0,0.0001705,2]
[389526976,1759698645058,-500.0,0.00017096,2]
[389526977,1759698645067,-372.0,0.00017099,2]
[389526978,1759698645076,-176.92738512,0.0001716,2]
[389526979,1759698645085,-151.0,0.000172,2]
[389526980,1759698645094,-151.0,0.0001725,2]
[389526981,1759698645103,-267.79785,0.0001725,2]
[389526982,1759698645112,-151.0,0.0001725,2]
[389526983,1759698645121,-500.0,0.0001726,2]
[389526984,1759698645131,-500.0,0.0001726,2]
[389526985,1759698645139,-151.0,0.0001726,2]
[389526986,1759698645148,-151.0,0.0001726,2]
[389526987,1759698645157,-455.88146398,0.0001726,2]
[389526988,1759698645167,-287.236858,0.0001726,2]
[389526989,1759698645175,-500.0,0.0001726,2]
[389526990,1759698645185,-501.77,0.0001726,2]
[389526991,1759698645194,-500.0,0.0001726,2]
[389526992,1759698645203,-507.78,0.0001726,2]
[389526993,1759698645212,-500.0,0.0001726,2]
[389526994,1759698645222,-1339.57,0.0001726,2]
[389526995,1759698645231,-500.0,0.0001726,2]
[389526996,1759698645240,-500.0,0.0001726,2]
[389526997,1759698645249,-787.95,0.0001726,2]
[389526998,1759698645258,-500.0,0.0001726,2]
[389526999,1759698645267,-500.0,0.0001726,2]
[389527000,1759698645276,-500.0,0.0001726,2]
[389527001,1759698645285,-500.0,0.0001726,2]
[389527002,1759698645294,-1344.19,0.0001726,2]
[389527003,1759698645303,-500.0,0.0001726,2]
[389527005,1759698645312,-500.0,0.0001726,2]
[389527007,1759698645323,-752.38,0.0001726,2]
[389527009,1759698645333,-596.19,0.0001726,2]
[389527011,1759698645342,-500.0,0.0001726,2]
[389527012,1759698645351,-500.0,0.0001726,2]
[389527014,1759698645360,-500.0,0.0001726,2]
[389527017,1759698645369,-500.0,0.0001726,2]
[389527020,1759698645378,-546.72,0.0001726,2]
[389527022,1759698645387,-621.04,0.0001726,2]
[389527024,1759698645395,-500.0,0.0001726,2]
[389527026,1759698645405,-500.0,0.0001726,2]
[389527028,1759698645414,-552.08,0.0001726,2]
[389527030,1759698645423,-671.56,0.0001726,2]
[389527031,1759698645432,-957.82,0.0001726,2]
[389527033,1759698645442,-342.24774734,0.0001726,2]
[389527035,1759698645451,-500.0,0.0001726,2]
[389527037,1759698645461,-500.0,0.0001726,2]
[389527038,1759698645471,-500.0,0.0001726,2]
[389527039,1759698645481,-1242.2,0.0001726,2]
[389527040,1759698645490,-500.0,0.0001726,2]
[389527041,1759698645499,-641.07,0.0001726,2]
[389527042,1759698645509,-500.0,0.0001726,2]
[389527043,1759698645519,-500.0,0.0001726,2]
[389527044,1759698645528,-500.0,0.0001726,2]
[389527045,1759698645538,-500.0,0.0001726,2]
[389527046,1759698645547,-500.0,0.0001726,2]
[389527047,1759698645557,-500.0,0.0001726,2]
[389527048,1759698645566,-1244.1,0.0001726,2]
[389527049,1759698645576,-555.01,0.0001726,2]
[389527051,1759698645586,-500.0,0.0001726,2]
[389527053,1759698645595,-500.0,0.0001726,2]
[389527055,1759698645606,-500.0,0.0001726,2]
[389527057,1759698645615,-500.0,0.0001726,2]
[389527058,1759698645625,-3387.9,0.0001726,2]
[389527059,1759698645634,-1240.9,0.0001726,2]
[389527060,1759698645643,-776.22,0.0001726,2]
[389527061,1759698645654,-689.51,0.0001726,2]
[389527062,1759698645665,-500.0,0.0001726,2]
[389527063,1759698645674,-500.0,0.0001726,2]
[389527064,1759698645684,-1006.13,0.0001726,2]
[389527065,1759698645694,-703.74,0.0001726,2]
[389527066,1759698645704,-2623.75,0.0001726,2]
[389527067,1759698645713,-1531.23,0.0001726,2]
[389527068,1759698645723,-500.0,0.0001726,2]
[389527069,1759698645731,-500.0,0.0001726,2]
[389527070,1759698645742,-746.05,0.0001726,2]
[389527072,1759698645751,-500.0,0.0001726,2]
[389527073,1759698645760,-1256.8,0.0001726,2]
[389527074,1759698645769,-544.56,0.0001726,2]
[389527075,1759698645778,-589.58,0.0001726,2]
[389527076,1759698645791,-1817.09,0.0001726,2]
[389527077,1759698645800,-500.0,0.0001726,2]
[389527078,1759698645809,-500.0,0.0001726,2]
[389527079,1759698645818,-2546.87,0.0001726,2]
[389527080,1759698645827,-1155.32,0.0001726,2]
[389527081,1759698645837,-2232.94,0.0001726,2]
[389527082,1759698645846,-503.21,0.0001726,2]
[389527083,1759698645855,-675.13,0.0001726,2]
[389527084,1759698645864,-500.0,0.0001726,2]
[389527085,1759698645874,-619.73,0.0001726,2]
[389527086,1759698645884,-500.0,0.0001726,2]
[389527087,1759698645894,-500.0,0.0001726,2]
[389527088,1759698645904,-500.0,0.0001726,2]
[389527089,1759698645914,-1898.34,0.0001726,2]
[389527090,1759698645923,-500.0,0.0001726,2]
[389527091,1759698645934,-500.0,0.0001726,2]
[389527092,1759698645945,-500.0,0.0001726,2]
[389527093,1759698645954,-500.0,0.0001726,2]
[389527094,1759698645963,-616.67,0.0001726,2]
[389527095,1759698645972,-1044.26,0.0001726,2]
[389527096,1759698645981,-500.0,0.0001726,2]
[389527097,1759698645990,-849.6,0.0001726,2]
[389527098,1759698645999,-516.3,0.0001726,2]
[389527099,1759698646008,-500.0,0.0001726,2]
[389527100,1759698646017,-589.5,0.0001726,2]
[389527101,1759698646026,-500.0,0.0001726,2]
[389527102,1759698646037,-1614.46,0.0001726,2]
[389527103,1759698646046,-506.14,0.0001726,2]
[389527104,1759698646057,-323.75575002,0.0001726,2]
[389527105,1759698646284,-619.31424998,0.0001726,2]
[389527106,1759698646293,-807.48,0.0001726,2]
[389527107,1759698646303,-500.0,0.0001726,2]
[389527108,1759698646312,-2074.48,0.0001726,2]
[389527109,1759698646321,-500.0,0.0001726,2]
[389527110,1759698646330,-500.0,0.0001726,2]
[389527111,1759698646340,-500.0,0.0001726,2]
[389527112,1759698646349,-337.94450166,0.0001726,2]
[389527113,1759698646358,-500.0,0.0001726,2]
[389527114,1759698646367,-500.0,0.0001726,2]
[389527115,1759698646377,-573.89,0.0001726,2]
[389527116,1759698646386,-500.0,0.0001726,2]
[389527117,1759698646395,-500.0,0.0001726,2]
[389527118,1759698646405,-557.62,0.0001726,2]
[389527119,1759698646414,-2487.78,0.0001726,2]
[389527120,1759698646423,-500.0,0.0001726,2]
[389527121,1759698646433,-500.0,0.0001726,2]
[389527122,1759698646442,-1062.27,0.0001726,2]
[389527123,1759698646452,-921.53,0.0001726,2]
[389527124,1759698646461,-4388.04,0.0001726,2]
[389527125,1759698646471,-1469.53,0.0001726,2]
[389527126,1759698646480,-500.0,0.0001726,2]
[389527127,1759698646489,-1137.41,0.0001726,2]
[389527128,1759698646498,-4246.51,0.0001726,2]
[389527129,1759698646508,-500.0,0.0001726,2]
[389527130,1759698646517,-500.0,0.0001726,2]
[389527131,1759698646526,-500.0,0.0001726,2]
[389527132,1759698646535,-1066.23,0.0001726,2]
[389527133,1759698646545,-3511.75,0.0001726,2]
[389527134,1759698646554,-658.24,0.0001726,2]
[389527135,1759698646564,-500.0,0.0001726,2]
[389527136,1759698646573,-500.0,0.0001726,2]
[389527137,1759698646583,-1456.88,0.0001726,2]
[389527138,1759698646593,-1205.93,0.0001726,2]
[389527139,1759698646602,-738.23,0.0001726,2]
[389527140,1759698646612,-500.0,0.0001726,2]
[389527141,1759698646621,-632.81,0.0001726,2]
[389527142,1759698646631,-500.0,0.0001726,2]
[389527143,1759698646640,-660.12,0.0001726,2]
[389527144,1759698646649,-151.0,0.0001726,2]
[389527145,1759698646663,-2236.38,0.0001726,2]
[389527146,1759698646672,-1996.38,0.0001726,2]
[389527147,1759698646681,-500.0,0.00017278,2]
[389527148,1759698646691,-500.0,0.00017278,2]
[389527149,1759698646703,-500.0,0.00017278,2]
[389527150,1759698646715,-500.0,0.00017278,2]
[389527151,1759698646727,-500.0,0.00017278,2]
[389527152,1759698646737,-500.0,0.00017278,2]
[389527153,1759698646746,-500.0,0.00017278,2]
[389527154,1759698646756,-500.0,0.00017278,2]
[389527155,1759698646765,-500.0,0.00017278,2]
[389527156,1759698646774,-500.0,0.00017278,2]
[389527157,1759698646783,-500.0,0.00017278,2]
[389527158,1759698646793,-580.67672975,0.00017278,2]
[389527159,1759698646802,-169.780732,0.00017292,2]
[389527160,1759698646812,-169.780732,0.00017292,2]
[389527161,1759698646821,-169.780732,0.00017292,2]
[389527162,1759698646831,-169.780732,0.00017292,2]
[389527163,1759698646840,-151.0,0.00017292,2]
[389527164,1759698646849,-151.0,0.00017292,2]
[389527165,1759698646859,-151.0,0.00017292,2]
[389527166,1759698646868,-151.0,0.00017292,2]
[389527167,1759698646879,-500.0,0.00017322,2]
[389527168,1759698646888,-1527.0,0.00017346,2]
[389527169,1759698646898,-151.0,0.00017346,2]
[389527170,1759698646909,-151.0,0.00017346,2]
[389527171,1759698646920,-151.0,0.00017346,2]
[389527172,1759698646930,-151.0,0.00017346,2]
[389527173,1759698646939,-151.0,0.00017346,2]
[389527174,1759698646949,-151.0,0.00017346,2]
[389527175,1759698646958,-151.0,0.00017346,2]
[389527176,1759698646968,-151.0,0.00017346,2]
[389527177,1759698646977,-151.0,0.00017346,2]
[389527178,1759698646987,-151.0,0.00017346,2]
[389527179,1759698646996,-151.0,0.00017346,2]
[389527180,1759698647005,-151.0,0.00017346,2]
[389527181,1759698647014,-151.0,0.00017346,2]
[389527182,1759698647023,-57.66475406,0.00017346,2]
[389527183,1759698647036,-93.33524594,0.00017346,2]
[389527184,1759698647046,-151.0,0.00017346,2]
[389527185,1759698647055,-151.0,0.00017346,2]
[389527186,1759698647066,-151.0,0.00017346,2]
[389527187,1759698647077,-151.0,0.00017346,2]
[389527188,1759698647087,-151.0,0.00017346,2]
[389527189,1759698647097,-3467.768628,0.00017346,2]
[389527190,1759698647106,-151.0,0.00017346,2]
[389527191,1759698647116,-3467.768628,0.00017346,2]
[389527192,1759698647125,-2974.82617932,0.00017346,2]
[389527193,1759698647350,-492.94244868,0.00017346,2]
[389527194,1759698647360,-40.02295634,0.00017346,2]
[389527195,1759698647372,-3427.74567166,0.00017346,2]
[389527196,1759698647382,-151.0,0.00017346,2]
[389527197,1759698647392,-151.0,0.00017362,2]
[389527198,1759698647403,-151.0,0.00017362,2]
[389527199,1759698647412,-151.0,0.00017362,2]
[389527200,1759698647422,-155.275558,0.00017362,2]
[389527201,1759698647432,-151.0,0.00017362,2]
[389527202,1759698647443,-500.0,0.00017362,2]
[389527203,1759698647453,-500.0,0.00017362,2]
[389527204,1759698647464,-500.0,0.0001737,2]
[389527205,1759698647473,-247.852894,0.00017375,2]
[389527206,1759698647483,-151.0,0.00017375,2]
[389527207,1759698647509,-151.0,0.00017375,2]
[389527208,1759698647518,-500.0,0.00017389,2]
[389527209,1759698647537,-605.6506948,0.00017451,2]
[389527210,1759698647547,-297.5145665,0.00017451,2]
[389527211,1759698647556,-325.3361068,0.00017451,2]
[389527212,1759698647566,-2641.30402055,0.00017462,2]
[389527213,1759698647576,-1175.3151264,0.00017463,2]
[389527214,1759698647586,-162.6680534,0.00017463,2]
[389527215,1759698647596,-297.5145665,0.00017463,2]
[389527216,1759698647605,-420.0,0.0001748,2]
[389527217,1759698647615,-420.0,0.0001748,2]
[389527218,1759698647625,-16279.35643558,0.00017483,2]
[389527219,1759698648181,-1400.3687712,0.0001599,2]
[389527220,1759698648193,-2094.78207258,0.0001599,2]
[389527221,1759698648204,-23267.24309997,0.0001599,2]
[389527222,1759698648214,-368.63041273,0.0001599,2]
[389527223,1759698648227,-15232.33956509,0.0001599,2]
[389527224,1759698648239,-542.09050609,0.0001599,2]
[389527225,1759698648250,-1880.83698528,0.0001599,2]
[389527226,1759698648261,-543.09602212,0.0001599,2]
[389527227,1759698648441,-54670.61256494,0.0001599,2]
[389527228,1759698648451,-500.0,0.00016438,2]
[389527229,1759698648461,-552.88,0.00016438,2]
[389527230,1759698648470,-529.55,0.00016438,2]
[389527231,1759698648480,-500.0,0.00016712,2]
[389527232,1759698648490,-529.55,0.00016712,2]
[389527233,1759698648499,-500.0,0.00016986,2]
[389527234,1759698648509,-529.55,0.00016986,2]
[389527235,1759698648518,-500.0,0.0001726,2]
[389527236,1759698648528,-529.55,0.0001726,2]
[389527237,1759698648538,-3012.87096132,0.00017483,2]
[389527238,1759698648547,-168.3888056,0.00017483,2]
[389527239,1759698648556,-396.0,0.00017499,2]
[389527240,1759698648566,-966.94421347,0.000175,2]
[389527241,1759698648575,-430.0,0.00017511,2]
[389527242,1759698648585,-151.0,0.00017512,2]
[389527243,1759698648595,-151.0,0.00017512,2]
[389527244,1759698648604,-184.14147557,0.00017533,2]
[389527245,1759698648613,-151.0,0.00017533,2]
[389527246,1759698648623,-151.0,0.00017533,2]
[389527247,1759698648632,-151.0,0.00017533,2]
[389527248,1759698648642,-210.688056,0.00017533,2]
[389527249,1759698648651,-151.0,0.00017533,2]
[389527250,1759698648665,-151.0,0.00017533,2]
[389527251,1759698648675,-151.0,0.00017533,2]
[389527252,1759698648685,-214.748306,0.00017533,2]
[389527253,1759698648696,-500.0,0.00017534,2]
[389527254,1759698648707,-500.0,0.00017534,2]
[389527255,1759698648718,-500.0,0.00017534,2]
[389527256,1759698648727,-500.0,0.00017534,2]
[389527257,1759698648738,-501.77,0.00017534,2]
[389527258,1759698648747,-500.0,0.00017534,2]
[389527259,1759698648757,-507.78,0.00017534,2]
[389527260,1759698648766,-500.0,0.00017534,2]
[389527261,1759698648775,-1339.57,0.00017534,2]
[389527262,1759698648786,-500.0,0.00017534,2]
[389527263,1759698648797,-500.0,0.00017534,2]
[389527264,1759698648806,-787.95,0.00017534,2]
[389527265,1759698648815,-500.0,0.00017534,2]
[389527266,1759698648824,-238.1997518,0.00017534,2]
[389527267,1759698648833,-500.0,0.00017534,2]
[389527268,1759698648842,-500.0,0.00017534,2]
[389527269,1759698648851,-1344.19,0.00017534,2]
[389527270,1759698648861,-500.0,0.00017534,2]
[389527271,1759698648871,-500.0,0.00017534,2]
[389527272,1759698648880,-752.38,0.00017534,2]
[389527273,1759698648889,-596.19,0.00017534,2]
[389527274,1759698648898,-500.0,0.00017534,2]
[389527275,1759698648907,-500.0,0.00017534,2]
[389527276,1759698648916,-500.0,0.00017534,2]
[389527277,1759698648926,-151.0,0.00017534,2]
[389527278,1759698648935,-500.0,0.00017534,2]
[389527279,1759698648944,-151.0,0.00017534,2]
[389527280,1759698648953,-546.72,0.00017534,2]
[389527281,1759698648962,-500.0,0.00017534,2]
[389527282,1759698648972,-151.0,0.00017534,2]
[389527283,1759698648981,-621.04,0.00017534,2]
[389527284,1759698648990,-500.0,0.00017534,2]
[389527285,1759698648999,-151.0,0.00017534,2]
[389527286,1759698649009,-500.0,0.00017534,2]
[389527287,1759698649018,-151.0,0.00017534,2]
[389527288,1759698649027,-500.0,0.00017534,2]
[389527289,1759698649036,-500.0,0.00017534,2]
[389527290,1759698649046,-500.0,0.00017534,2]
[389527291,1759698649055,-500.0,0.00017534,2]
[389527292,1759698649064,-500.0,0.00017534,2]
[389527293,1759698649074,-151.0,0.00017534,2]
[389527294,1759698649083,-552.08,0.00017534,2]
[389527295,1759698649093,-671.56,0.00017534,2]
[389527296,1759698649102,-151.0,0.00017534,2]
[389527297,1759698649111,-151.0,0.00017534,2]
[389527298,1759698649120,-957.82,0.00017534,2]
[389527299,1759698649130,-500.0,0.00017534,2]
[389527300,1759698649139,-500.0,0.00017534,2]
[389527301,1759698649149,-397.73632851,0.00017534,2]
[389527302,1759698649158,-1242.2,0.00017534,2]
[389527303,1759698649167,-151.0,0.00017534,2]
[389527304,1759698649177,-500.0,0.00017534,2]
[389527305,1759698649186,-151.0,0.00017534,2]
[389527306,1759698649195,-151.0,0.00017534,2]
[389527307,1759698649205,-641.07,0.00017534,2]
[389527308,1759698649214,-500.0,0.00017534,2]
[389527309,1759698649224,-500.0,0.00017534,2]
[389527310,1759698649233,-151.0,0.00017534,2]
[389527311,1759698649243,-500.0,0.00017534,2]
[389527312,1759698649252,-500.0,0.00017534,2]
[389527313,1759698649262,-1630.0,0.00017534,2]
[389527314,1759698649272,-500.0,0.00017534,2]
[389527315,1759698649282,-151.0,0.00017534,2]
[389527316,1759698649291,-500.0,0.00017534,2]
[389527317,1759698649300,-189.6808087,0.00017534,2]
[389527318,1759698649308,-295.13954117,0.00017534,2]
[389527319,1759698649316,-158.80768203,0.00017534,2]
[389527320,1759698649324,-151.0,0.00017534,2]
[389527321,1759698649333,-500.0,0.00017534,2]
[389527322,1759698649341,-500.0,0.00017534,2]
[389527323,1759698649350,-151.0,0.00017534,2]
[389527324,1759698649360,-1244.1,0.00017534,2]
[389527325,1759698649368,-555.01,0.00017534,2]
[389527326,1759698649377,-500.0,0.00017534,2]
[389527327,1759698649386,-500.0,0.00017534,2]
[389527328,1759698649395,-500.0,0.00017534,2]
[389527329,1759698649403,-500.0,0.00017534,2]
[389527330,1759698649411,-294.54371362,0.00017534,2]
[389527331,1759698649419,-151.0,0.00017534,2]
[389527332,1759698649427,-151.0,0.00017534,2]
[389527333,1759698649436,-151.0,0.00017534,2]
[389527334,1759698649444,-500.0,0.00017534,2]
[389527335,1759698649454,-151.0,0.00017534,2]
[389527336,1759698649462,-265.06185,0.00017534,2]
[389527337,1759698649471,-151.0,0.00017534,2]
[389527338,1759698649480,-776.22,0.00017534,2]
[389527339,1759698649488,-689.51,0.00017534,2]
[389527340,1759698649497,-500.0,0.00017534,2]
[389527341,1759698649506,-500.0,0.00017534,2]
[389527342,1759698649515,-1006.13,0.00017534,2]
[389527343,1759698649523,-703.74,0.00017534,2]